lending/lending_fUSD_20250425
["ID","MTS","AMOUNT","RATE_DAILY","PERIOD"]
[358947590,1745583045864,-500.0,0.00035616,2]
[358947591,1745583045873,-500.0,0.00035616,2]
[358947592,1745583045883,-500.0,0.00035616,2]
[358947593,1745583045892,-500.0,0.00035616,2]
[358947594,1745583045902,-500.0,0.00035616,2]
[358947595,1745583045912,-500.0,0.00035616,2]
[358947596,1745583045922,-500.0,0.00035616,2]
[358947597,1745583045932,-868.87,0.00035616,2]
[358947598,1745583045941,-500.0,0.00035616,2]
[358947599,1745583045952,-507.88169253,0.00035616,2]
[358947600,1745583045963,-797.02,0.00035616,2]
[358947601,1745583045972,-500.0,0.00035616,2]
[358947602,1745583045983,-500.0,0.00035616,2]
[358947603,1745583045992,-500.0,0.00035616,2]
[358947604,1745583046002,-500.0,0.00035616,2]
[358947605,1745583046012,-818.13,0.00035616,2]
[358947606,1745583046023,-500.0,0.00035616,2]
[358947607,1745583046032,-500.0,0.00035616,2]
[358947608,1745583046042,-1161.28,0.00035616,2]
[358947609,1745583046052,-500.0,0.00035616,2]
[358947610,1745583046061,-500.0,0.00035616,2]
[358947611,1745583046071,-500.0,0.00035616,2]
[358947612,1745583046081,-500.0,0.00035616,2]
[358947613,1745583046092,-860.36,0.00035616,2]
[358947614,1745583046102,-500.0,0.00035616,2]
[358947615,1745583046111,-500.0,0.00035616,2]
[358947616,1745583046121,-500.0,0.00035616,2]
[358947618,1745583046131,-500.0,0.00035616,2]
[358947619,1745583046140,-500.0,0.00035616,2]
[358947620,1745583046150,-500.0,0.00035616,2]
[358947621,1745583046159,-500.0,0.00035616,2]
[358947622,1745583046170,-500.0,0.00035616,2]
[358947623,1745583046180,-500.0,0.00035616,2]
[358947624,1745583046190,-615.79609672,0.00035616,2]
[358947625,1745583046200,-500.0,0.00035616,2]
[358947626,1745583046209,-500.0,0.00035616,2]
[358947627,1745583046219,-500.0,0.00035616,2]
[358947628,1745583046229,-500.0,0.00035616,2]
[358947630,1745583046239,-500.0,0.00035616,2]
[358947632,1745583046249,-500.0,0.00035616,2]
[358947634,1745583046259,-583.65,0.00035616,2]
[358947636,1745583046268,-500.0,0.00035616,2]
[358947638,1745583046278,-449.89667667,0.00035616,2]
[358947640,1745583046288,-1027.07,0.00035616,2]
[358947643,1745583046298,-500.0,0.00035616,2]
[358947646,1745583046307,-500.0,0.00035616,2]
[358947648,1745583046317,-500.0,0.00035616,2]
[358947650,1745583046329,-516.64610386,0.00035616,2]
[358947653,1745583046339,-558.86434426,0.00035616,2]
[358947655,1745583046348,-151.0,0.00035616,7]
[358947657,1745583046358,-500.0,0.00035616,2]
[358947659,1745583046367,-151.0,0.00035616,7]
[358947661,1745583046377,-151.0,0.00035616,7]
[358947663,1745583046390,-151.0,0.00035616,7]
[358947665,1745583046400,-500.0,0.00035616,2]
[358947667,1745583046410,-151.0,0.00035616,7]
[358947669,1745583046421,-500.0,0.00035616,2]
[358947671,1745583046431,-703.37,0.00035616,2]
[358947673,1745583046441,-1062.7,0.00035616,2]
[358947674,1745583046451,-151.0,0.00035616,7]
[358947675,1745583046461,-151.0,0.00035616,7]
[358947676,1745583046471,-151.0,0.00035616,7]
[358947677,1745583046480,-547.40449411,0.00035616,2]
[358947679,1745583046490,-151.0,0.00035616,7]
[358947681,1745583046499,-500.0,0.00035616,2]
[358947683,1745583046509,-152.338148,0.00035616,7]
[358947685,1745583046518,-151.0,0.00035616,7]
[358947687,1745583046528,-151.0,0.00035616,7]
[358947689,1745583046537,-500.0,0.00035616,2]
[358947691,1745583046547,-234.037663,0.00035616,7]
[358947693,1745583046558,-151.0,0.00035616,7]
[358947695,1745583046567,-151.0,0.00035616,7]
[358947697,1745583046577,-500.0,0.00035616,2]
[358947699,1745583046587,-151.0,0.00035616,7]
[358947701,1745583046596,-171.84751,0.00035616,7]
[358947703,1745583046606,-502.71,0.00035616,2]
[358947705,1745583046616,-500.42,0.00035616,2]
[358947707,1745583046625,-500.0,0.00035616,2]
[358947710,1745583046635,-500.0,0.00035616,2]
[358947711,1745583046645,-500.0,0.00035616,2]
[358947712,1745583046654,-522.94,0.00035616,2]
[358947713,1745583046664,-151.0,0.00035616,7]
[358947714,1745583046674,-500.0,0.00035616,2]
[358947715,1745583046683,-151.0,0.00035616,7]
[358947716,1745583046693,-151.0,0.00035616,7]
[358947717,1745583046702,-500.0,0.00035616,2]
[358947718,1745583046712,-151.0,0.00035616,7]
[358947720,1745583046721,-151.0,0.00035616,7]
[358947722,1745583046731,-500.0,0.00035616,2]
[358947723,1745583046741,-500.0,0.00035616,2]
[358947724,1745583046751,-523.50803474,0.00035616,2]
[358947725,1745583046760,-151.0,0.00035616,7]
[358947726,1745583046771,-151.0,0.00035616,7]
[358947727,1745583046780,-500.0,0.00035616,2]
[358947728,1745583046789,-151.0,0.00035616,7]
[358947729,1745583046799,-524.0,0.00035616,2]
[358947730,1745583046808,-500.0,0.00035616,2]
[358947731,1745583046819,-222.34819597,0.00035616,7]
[358947732,1745583046828,-151.0,0.00035616,7]
[358947733,1745583046838,-151.0,0.00035616,7]
[358947734,1745583046848,-151.0,0.00035616,7]
[358947735,1745583046859,-151.0,0.00035616,7]
[358947736,1745583046871,-506.12729265,0.00035616,2]
[358947738,1745583046881,-151.0,0.00035616,7]
[358947739,1745583046891,-500.0,0.00035616,2]
[358947740,1745583046900,-500.0,0.00035616,2]
[358947741,1745583046910,-582.93,0.00035616,2]
[358947742,1745583046919,-526.72028177,0.00035616,2]
[358947743,1745583046930,-500.0,0.00035616,2]
[358947744,1745583046942,-539.03,0.00035616,2]
[358947745,1745583046952,-500.0,0.00035616,2]
[358947746,1745583046963,-644.39,0.00035616,2]
[358947747,1745583046973,-517.28709193,0.00035616,2]
[358947748,1745583046983,-173.153948,0.00035616,7]
[358947749,1745583046993,-173.153948,0.00035616,7]
[358947750,1745583047004,-173.153948,0.00035616,7]
[358947751,1745583047013,-173.153948,0.00035616,7]
[358947752,1745583047023,-173.153948,0.00035616,7]
[358947753,1745583047034,-500.0,0.00035616,2]
[358947754,1745583047043,-173.153948,0.00035616,7]
[358947755,1745583047053,-173.153948,0.00035616,7]
[358947756,1745583047063,-173.153948,0.00035616,7]
[358947757,1745583047072,-173.153948,0.00035616,7]
[358947758,1745583047083,-173.153948,0.00035616,7]
[358947759,1745583047093,-500.0,0.00035616,2]
[358947760,1745583047103,-506.15,0.00035616,2]
[358947761,1745583047114,-529.71838469,0.00035616,2]
[358947762,1745583047126,-511.62576367,0.00035616,2]
[358947763,1745583047137,-649.96,0.00035616,2]
[358947764,1745583047149,-500.0,0.00035616,2]
[358947765,1745583047160,-154.539421,0.00035616,7]
[358947766,1745583047171,-539.25134629,0.00035616,2]
[358947767,1745583047182,-170.378045,0.00035616,7]
[358947768,1745583047192,-635.02,0.00035616,2]
[358947769,1745583047202,-500.0,0.00035616,2]
[358947770,1745583047211,-500.0,0.00035616,2]
[358947771,1745583047220,-500.0,0.00035616,2]
[358947772,1745583047230,-506.25,0.00035616,2]
[358947773,1745583047239,-917.14,0.00035616,2]
[358947774,1745583047249,-500.0,0.00035616,2]
[358947775,1745583047259,-500.0,0.00035616,2]
[358947776,1745583047268,-500.0,0.00035616,2]
[358947777,1745583047278,-500.0,0.00035616,2]
[358947778,1745583047288,-233.47246789,0.00035616,2]
[358947779,1745583047297,-500.0,0.00035616,2]
[358947780,1745583047307,-500.0,0.00035616,2]
[358947781,1745583047316,-553.75286406,0.00035616,2]
[358947782,1745583047329,-500.0,0.00035616,2]
[358947783,1745583047339,-500.0,0.00035616,2]
[358947784,1745583047349,-500.0,0.00035616,2]
[358947785,1745583047361,-500.0,0.00035616,2]
[358947786,1745583047372,-595.85,0.00035616,2]
[358947787,1745583047386,-500.0,0.00035616,2]
[358947788,1745583047399,-500.0,0.00035616,2]
[358947789,1745583047411,-793.45,0.00035616,2]
[358947790,1745583047422,-544.64,0.00035616,2]
[358947791,1745583047434,-500.0,0.00035616,2]
[358947792,1745583047444,-500.0,0.00035616,2]
[358947793,1745583047453,-500.0,0.00035616,2]
[358947794,1745583047465,-500.0,0.00035616,2]
[358947795,1745583047474,-500.0,0.00035616,2]
[358947796,1745583047484,-500.0,0.00035616,2]
[358947797,1745583047494,-500.0,0.00035616,2]
[358947798,1745583047504,-500.0,0.00035616,2]
[358947799,1745583047514,-500.0,0.00035616,2]
[358947800,1745583047523,-500.0,0.00035616,2]
[358947801,1745583047533,-500.0,0.00035616,2]
[358947802,1745583047543,-500.0,0.00035616,2]
[358947803,1745583047553,-500.0,0.00035616,2]
[358947804,1745583047562,-151.0,0.00035616,7]
[358947805,1745583047572,-328.52483029,0.00035616,2]
[358947806,1745583047582,-151.0,0.00035616,7]
[358947807,1745583047592,-152.711773,0.00035616,7]
[358947808,1745583047601,-540.40466138,0.00035616,2]
[358947809,1745583047612,-620.54,0.00035616,2]
[358947810,1745583047622,-544.39,0.00035616,2]
[358947811,1745583047631,-500.0,0.00035616,2]
[358947812,1745583047640,-541.17,0.00035616,2]
[358947813,1745583047651,-755.48,0.00035616,2]
[358947814,1745583047662,-500.0,0.00035616,2]
[358947815,1745583047672,-500.0,0.00035616,2]
[358947816,1745583047683,-500.0,0.00035616,2]
[358947817,1745583047693,-700.11,0.00035616,2]
[358947818,1745583047704,-500.0,0.00035616,2]
[358947819,1745583047714,-500.0,0.00035616,2]
[358947820,1745583047724,-500.0,0.00035616,2]
[358947821,1745583047734,-500.0,0.00035616,2]
[358947822,1745583047745,-538.46,0.00035616,2]
[358947823,1745583047755,-500.0,0.00035616,2]
[358947824,1745583047764,-500.0,0.00035616,2]
[358947825,1745583047774,-500.0,0.00035616,2]
[358947826,1745583047783,-500.0,0.00035616,2]
[358947827,1745583047793,-500.0,0.00035616,2]
[358947828,1745583047802,-500.0,0.00035616,2]
[358947829,1745583047811,-500.0,0.00035616,2]
[358947830,1745583047820,-608.82614591,0.00035616,2]
[358947831,1745583047830,-500.0,0.00035616,2]
[358947832,1745583047839,-563.74704491,0.00035616,2]
[358947833,1745583047849,-500.0,0.00035616,2]
[358947834,1745583047858,-500.0,0.00035616,2]
[358947835,1745583047868,-500.0,0.00035616,2]
[358947836,1745583047877,-1069.68,0.00035616,2]
[358947837,1745583047887,-570.51,0.00035616,2]
[358947838,1745583047896,-500.0,0.00035616,2]
[358947839,1745583047906,-500.0,0.00035616,2]
[358947840,1745583047916,-640.19,0.00035616,2]
[358947841,1745583047925,-500.0,0.00035616,2]
[358947842,1745583047935,-500.0,0.00035616,2]
[358947843,1745583047945,-151.0,0.00035616,7]
[358947844,1745583047954,-151.0,0.00035616,7]
[358947845,1745583047964,-10810.18,0.00035616,2]
[358947846,1745583047973,-151.0,0.00035616,7]
[358947847,1745583047983,-151.0,0.00035616,7]
[358947848,1745583047992,-151.0,0.00035616,7]
[358947849,1745583048002,-500.0,0.00035616,2]
[358947850,1745583048011,-500.0,0.00035616,2]
[358947851,1745583048021,-151.0,0.00035616,7]
[358947852,1745583048031,-500.0,0.00035616,2]
[358947853,1745583048040,-151.0,0.00035616,7]
[358947854,1745583048049,-151.0,0.00035616,7]
[358947855,1745583048059,-151.0,0.00035616,7]
[358947856,1745583048069,-151.0,0.00035616,7]
[358947857,1745583048078,-500.0,0.00035616,2]
[358947858,1745583048088,-10840.88,0.00035616,2]
[358947859,1745583048097,-500.0,0.00035616,2]
[358947860,1745583048107,-508.03871539,0.00035616,2]
[358947861,1745583048116,-899.41,0.00035616,2]
[358947862,1745583048125,-966.06,0.00035616,2]
[358947863,1745583048135,-4171.73,0.00035616,2]
[358947864,1745583048144,-500.0,0.00035616,2]
[358947865,1745583048154,-500.0,0.00035616,2]
[358947866,1745583048163,-233.90237813,0.00035616,2]
[358947867,1745583048172,-500.0,0.00035616,2]
[358947868,1745583048182,-500.0,0.00035616,2]
[358947869,1745583048191,-165.255322,0.00035616,2]
[358947870,1745583048201,-500.0,0.00035616,2]
[358947871,1745583048210,-500.0,0.00035616,2]
[358947872,1745583048220,-500.0,0.00035616,2]
[358947873,1745583048229,-500.0,0.00035616,2]
[358947874,1745583048239,-500.0,0.00035616,2]
[358947875,1745583048249,-500.0,0.00035616,2]
[358947876,1745583048259,-1032.19,0.00035616,2]
[358947877,1745583048268,-500.0,0.00035616,2]
[358947878,1745583048278,-500.0,0.00035616,2]
[358947879,1745583048288,-556.66508019,0.00035616,2]
[358947880,1745583048297,-500.0,0.00035616,2]
[358947881,1745583048307,-500.0,0.00035616,2]
[358947882,1745583048315,-568.252193,0.00035616,2]
[358947883,1745583048326,-513.040522,0.00035616,2]
[358947884,1745583048335,-568.252193,0.00035616,2]
[358947885,1745583048344,-500.0,0.00035616,2]
[358947886,1745583048354,-1128.15,0.00035616,2]
[358947887,1745583048363,-163.692243,0.00035616,2]
[358947888,1745583048373,-500.0,0.00035616,2]
[358947889,1745583048382,-516.95813337,0.00035616,2]
[358947890,1745583048395,-500.0,0.00035616,2]
[358947891,1745583048406,-500.0,0.00035616,2]
[358947892,1745583048415,-500.0,0.00035616,2]
[358947893,1745583048425,-529.21511513,0.00035616,2]
[358947894,1745583048434,-734.64,0.00035616,2]
[358947895,1745583048443,-500.0,0.00035616,2]
[358947896,1745583048453,-517.20263337,0.00035616,2]
[358947897,1745583048463,-533.32464691,0.00035616,2]
[358947898,1745583048474,-151.0,0.00035616,7]
[358947899,1745583048484,-500.0,0.00035616,2]
[358947900,1745583048494,-500.0,0.00035616,2]
[358947901,1745583048504,-500.0,0.00035616,2]
[358947902,1745583048514,-500.0,0.00035616,2]
[358947903,1745583048765,-151.0,0.00035616,7]
[358947904,1745583048778,-521.17978049,0.00035616,2]
[358947905,1745583048788,-151.0,0.00035616,7]
[358947906,1745583048798,-500.0,0.00035616,2]
[358947907,1745583048808,-528.0140218,0.00035616,2]
[358947908,1745583048818,-151.0,0.00035616,7]
[358947909,1745583048828,-500.0,0.00035616,2]
[358947910,1745583048837,-151.0,0.00035616,7]
[358947911,1745583048847,-570.73863649,0.00035616,2]
[358947912,1745583048857,-151.0,0.00035616,7]
[358947913,1745583048867,-158.747427,0.00035616,7]
[358947914,1745583048877,-500.0,0.00035616,2]
[358947915,1745583048886,-500.0,0.00035616,2]
[358947916,1745583048896,-500.0,0.00035616,2]
[358947917,1745583048906,-500.0,0.00035616,2]
[358947918,1745583048917,-500.0,0.00035616,2]
[358947919,1745583048927,-500.0,0.00035616,2]
[358947920,1745583048936,-500.0,0.00035616,2]
[358947921,1745583048946,-500.0,0.00035616,2]
[358947922,1745583048956,-542.53,0.00035616,2]
[358947923,1745583048966,-500.0,0.00035616,2]
[358947924,1745583048977,-500.0,0.00035616,2]
[358947925,1745583048986,-500.0,0.00035616,2]
[358947926,1745583048996,-500.0,0.00035616,2]
[358947927,1745583049006,-500.0,0.00035616,2]
[358947928,1745583049017,-500.0,0.00035616,2]
[358947929,1745583049027,-500.0,0.00035616,2]
[358947930,1745583049038,-570.55300334,0.00035616,2]
[358947931,1745583049048,-2830.29,0.00035616,2]
[358947932,1745583049059,-500.0,0.00035616,2]
[358947933,1745583049068,-214.57028273,0.00035616,2]
[358947934,1745583049079,-534.62476483,0.00035616,2]
[358947935,1745583049089,-500.0,0.00035616,2]
[358947936,1745583049099,-500.0,0.00035616,2]
[358947937,1745583049110,-500.0,0.00035616,2]
[358947938,1745583049119,-500.0,0.00035616,2]
[358947939,1745583049129,-500.0,0.00035616,2]
[358947940,1745583049139,-291.162233,0.00035616,7]
[358947941,1745583049148,-594.93603749,0.00035616,2]
[358947942,1745583049158,-500.0,0.00035616,2]
[358947943,1745583049168,-500.0,0.00035616,2]
[358947944,1745583049178,-500.0,0.00035616,2]
[358947945,1745583049188,-500.0,0.00035616,2]
[358947946,1745583049198,-500.0,0.00035616,2]
[358947947,1745583049208,-581.64628648,0.00035616,2]
[358947948,1745583049218,-500.0,0.00035616,2]
[358947949,1745583049228,-500.0,0.00035616,2]
[358947950,1745583049238,-500.0,0.00035616,2]
[358947951,1745583049248,-994.75,0.00035616,2]
[358947952,1745583049258,-500.0,0.00035616,2]
[358947953,1745583049267,-500.0,0.00035616,2]
[358947954,1745583049278,-1123.78,0.00035616,2]
[358947955,1745583049288,-508.00059332,0.00035616,2]
[358947956,1745583049298,-500.0,0.00035616,2]
[358947957,1745583049308,-500.0,0.00035616,2]
[358947958,1745583049318,-623.9,0.00035616,2]
[358947959,1745583049328,-500.0,0.00035616,2]
[358947960,1745583049338,-537.59983006,0.00035616,2]
[358947961,1745583049348,-500.0,0.00035616,2]
[358947962,1745583049360,-500.0,0.00035616,2]
[358947963,1745583049370,-500.0,0.00035616,2]
[358947964,1745583049380,-541.61796787,0.00035616,2]
[358947965,1745583049395,-663.3,0.00035616,2]
[358947966,1745583049405,-500.0,0.00035616,2]
[358947967,1745583049415,-500.0,0.00035616,2]
[358947968,1745583049425,-500.0,0.00035616,2]
[358947969,1745583049435,-1449.12,0.00035616,2]
[358947970,1745583049445,-566.72,0.00035616,2]
[358947971,1745583049454,-500.0,0.00035616,2]
[358947972,1745583049464,-520.89491647,0.00035616,2]
[358947973,1745583049475,-823.11,0.00035616,2]
[358947974,1745583049485,-823.11,0.00035616,2]
[358947975,1745583049496,-823.11,0.00035616,2]
[358947976,1745583049506,-823.11,0.00035616,2]
[358947977,1745583049516,-823.11,0.00035616,2]
[358947978,1745583049527,-500.0,0.00035616,2]
[358947979,1745583049538,-823.11,0.00035616,2]
[358947980,1745583049548,-500.0,0.00035616,2]
[358947981,1745583049558,-823.11,0.00035616,2]
[358947982,1745583049568,-823.11,0.00035616,2]
[358947983,1745583049578,-823.11,0.00035616,2]
[358947984,1745583049588,-500.0,0.00035616,2]
[358947985,1745583049599,-500.0,0.00035616,2]
[358947986,1745583049609,-500.0,0.00035616,2]
[358947987,1745583049619,-546.08,0.00035616,2]
[358947988,1745583049629,-500.0,0.00035616,2]
[358947989,1745583049639,-500.0,0.00035616,2]
[358947990,1745583049648,-500.0,0.00035616,2]
[358947991,1745583049659,-151.0,0.00035616,7]
[358947992,1745583049669,-500.0,0.00035616,2]
[358947993,1745583049679,-728.93,0.00035616,2]
[358947994,1745583049689,-151.0,0.00035616,7]
[358947995,1745583049699,-151.0,0.00035616,7]
[358947996,1745583049708,-151.0,0.00035616,7]
[358947997,1745583049718,-156.451024,0.00035616,7]
[358947998,1745583049727,-500.0,0.00035616,2]
[358947999,1745583049737,-299.314075,0.00035616,7]
[358948000,1745583049747,-653.19,0.00035616,2]
[358948001,1745583049757,-644.02,0.00035616,2]
[358948002,1745583049767,-500.0,0.00035616,2]
[358948003,1745583049777,-299.314075,0.00035616,7]
[358948004,1745583049786,-299.314075,0.00035616,7]
[358948005,1745583049796,-1007.1,0.00035616,2]
[358948006,1745583049806,-500.0,0.00035616,2]
[358948007,1745583049817,-299.314075,0.00035616,7]
[358948008,1745583049827,-299.314075,0.00035616,7]
[358948009,1745583049837,-492.71075986,0.00035616,2]
[358948010,1745583049847,-500.0,0.00035616,2]
[358948011,1745583049857,-500.0,0.00035616,2]
[358948012,1745583049867,-299.314075,0.00035616,7]
[358948013,1745583049877,-299.314075,0.00035616,7]
[358948014,1745583049887,-500.0,0.00035616,2]
[358948015,1745583049897,-534.59471592,0.00035616,2]
[358948016,1745583049906,-299.314075,0.00035616,7]
[358948017,1745583049916,-299.314075,0.00035616,7]
[358948018,1745583049927,-500.0,0.00035616,2]
[358948019,1745583049937,-299.314075,0.00035616,7]
[358948020,1745583049947,-787.02,0.00035616,2]
[358948021,1745583049956,-500.0,0.00035616,2]
[358948022,1745583049966,-1008.08,0.00035616,2]
[358948023,1745583049975,-694.5,0.00035616,2]
[358948024,1745583049985,-500.0,0.00035616,2]
[358948025,1745583049995,-500.0,0.00035616,2]
[358948026,1745583050005,-500.0,0.00035616,2]
[358948027,1745583050014,-1132.53,0.00035616,2]
[358948028,1745583050025,-500.0,0.00035616,2]
[358948029,1745583050035,-500.0,0.00035616,2]
[358948030,1745583050044,-500.0,0.00035616,2]
[358948031,1745583050054,-511.98272243,0.00035616,2]
[358948032,1745583050065,-500.0,0.00035616,2]
[358948033,1745583050074,-568.37356261,0.00035616,2]
[358948034,1745583050084,-500.0,0.00035616,2]
[358948035,1745583050094,-500.0,0.00035616,2]
[358948036,1745583050104,-500.0,0.00035616,2]
[358948037,1745583050114,-769.43,0.00035616,2]
[358948038,1745583050125,-500.0,0.00035616,2]
[358948039,1745583050135,-1312.71,0.00035616,2]
[358948040,1745583050145,-530.12215077,0.00035616,2]
[358948041,1745583050156,-500.0,0.00035616,2]
[358948042,1745583050168,-588.08,0.00035616,2]
[358948043,1745583050177,-513.65343823,0.00035616,2]
[358948044,1745583050189,-500.0,0.00035616,2]
[358948045,1745583050199,-510.22966709,0.00035616,2]
[358948046,1745583050211,-281.032286,0.00035616,7]
[358948047,1745583050221,-679.02,0.00035616,2]
[358948048,1745583050231,-679.02,0.00035616,2]
[358948049,1745583050241,-500.0,0.00035616,2]
[358948050,1745583050251,-500.0,0.00035616,2]
[358948051,1745583050260,-500.0,0.00035616,2]
[358948052,1745583050270,-679.02,0.00035616,2]
[358948053,1745583050280,-679.02,0.00035616,2]
[358948054,1745583050290,-679.02,0.00035616,2]
[358948055,1745583050301,-679.02,0.00035616,2]
[358948056,1745583050312,-679.02,0.00035616,2]
[358948057,1745583050322,-517.24,0.00035616,2]
[358948058,1745583050331,-679.02,0.00035616,2]
[358948059,1745583050341,-679.02,0.00035616,2]
[358948060,1745583050351,-1073.84,0.00035616,2]
[358948061,1745583050361,-500.0,0.00035616,2]
[358948062,1745583050371,-500.0,0.00035616,2]
[358948063,1745583050380,-500.0,0.00035616,2]
[358948064,1745583050393,-500.0,0.00035616,2]
[358948065,1745583050403,-538.09977851,0.00035616,2]
[358948066,1745583050413,-1188.42,0.00035616,2]
[358948067,1745583050423,-516.57765654,0.00035616,2]
[358948068,1745583050435,-500.0,0.00035616,2]
[358948069,1745583050445,-500.0,0.00035616,2]
[358948070,1745583050455,-500.0,0.00035616,2]
[358948071,1745583050468,-742.58,0.00035616,2]
[358948072,1745583050479,-527.49348698,0.00035616,2]
[358948073,1745583050490,-500.0,0.00035616,2]
[358948074,1745583050500,-528.27,0.00035616,2]
[358948075,1745583050509,-500.0,0.00035616,2]
[358948076,1745583050519,-554.91551283,0.00035616,2]
[358948077,1745583050529,-538.553582,0.00035616,2]
[358948078,1745583050539,-500.0,0.00035616,2]
[358948079,1745583050548,-1005.63995471,0.00035616,2]
[358948080,1745583050558,-500.0,0.00035616,2]
[358948081,1745583050568,-510.55729179,0.00035616,2]
[358948082,1745583050578,-678.67,0.00035616,2]
[358948083,1745583050588,-984.22,0.00035616,2]
[358948084,1745583050597,-514.64299442,0.00035616,2]
[358948085,1745583050607,-500.0,0.00035616,2]
[358948086,1745583050617,-1357.86,0.00035616,2]
[358948087,1745583050627,-500.0,0.00035616,2]
[358948088,1745583050637,-529.55287912,0.00035616,2]
[358948089,1745583050647,-500.0,0.00035616,2]
[358948090,1745583050656,-1018.63,0.00035616,2]
[358948091,1745583050666,-500.0,0.00035616,2]
[358948092,1745583050676,-500.0,0.00035616,2]
[358948093,1745583050685,-500.0,0.00035616,2]
[358948094,1745583050695,-500.0,0.00035616,2]
[358948095,1745583050705,-500.0,0.00035616,2]
[358948096,1745583050715,-500.0,0.00035616,2]
[358948097,1745583050725,-500.0,0.00035616,2]
[358948098,1745583050735,-518.27438816,0.00035616,2]
[358948099,1745583050745,-599.18,0.00035616,2]
[358948100,1745583050754,-618.78,0.00035616,2]
[358948101,1745583050764,-500.0,0.00035616,2]
[358948102,1745583050774,-500.0,0.00035616,2]
[358948103,1745583050785,-500.0,0.00035616,2]
[358948104,1745583050797,-500.0,0.00035616,2]
[358948105,1745583050808,-1036.97,0.00035616,2]
[358948106,1745583050818,-500.0,0.00035616,2]
[358948107,1745583050828,-500.0,0.00035616,2]
[358948108,1745583050838,-695.81,0.00035616,2]
[358948109,1745583050850,-500.0,0.00035616,2]
[358948110,1745583050861,-500.0,0.00035616,2]
[358948111,1745583050871,-500.0,0.00035616,2]
[358948112,1745583050882,-530.62037653,0.00035616,2]
[358948113,1745583050893,-262.30899233,0.00035616,2]
[358948114,1745583050904,-2083.95,0.00035616,2]
[358948115,1745583050915,-563.08164743,0.00035616,2]
[358948116,1745583050925,-500.0,0.00035616,2]
[358948117,1745583050934,-500.0,0.00035616,2]
[358948118,1745583050944,-500.0,0.00035616,2]
[358948119,1745583050954,-500.0,0.00035616,2]
[358948120,1745583050965,-500.0,0.00035616,2]
[358948121,1745583050976,-534.52215006,0.00035616,2]
[358948122,1745583050986,-500.0,0.00035616,2]
[358948123,1745583050995,-500.0,0.00035616,2]
[358948124,1745583051006,-500.0,0.00035616,2]
[358948125,1745583051015,-546.36,0.00035616,2]
[358948126,1745583051026,-500.0,0.00035616,2]
[358948127,1745583051036,-1065.05,0.00035616,2]
[358948128,1745583051045,-500.0,0.00035616,2]
[358948129,1745583051056,-500.0,0.00035616,2]
[358948130,1745583051066,-500.0,0.00035616,2]
[358948131,1745583051076,-500.0,0.00035616,2]
[358948132,1745583051086,-765.14,0.00035616,2]
[358948133,1745583051096,-500.0,0.00035616,2]
[358948134,1745583051106,-500.0,0.00035616,2]